bitfinex/quotes_ETHUSD_20260304
["timestamp","ask_amount","ask_price","bid_price","bid_amount"]
[1772667157289,1.21919349,2121.5,2121.0,0.0091511]
[1772667157518,1.21919349,2121.8,2120.6,0.60633312]
[1772667157687,3.99064941,2121.7,2120.9,0.60410336]
[1772667157993,1.21919349,2121.7,2120.9,0.60410336]
[1772667158691,1.21919349,2121.7,2121.0,1.99508292]
[1772667159775,2.39754074,2121.7,2121.0,3.17373218]
[1772667160090,1.21919349,2121.6,2121.0,1.30263123]
[1772667160879,2.39748253,2121.8,2121.0,3.17105646]
[1772667161076,1.17821647,2121.9,2121.1,0.68974923]
[1772667161466,1.17821647,2121.9,2121.0,2.48130723]
[1772667161467,0.001,2122.0,2121.3,0.68974923]
[1772667161994,0.001,2122.0,2121.4,3.16946423]
[1772667162363,1.22019349,2122.0,2121.4,1.30263123]
[1772667162769,1.22019349,2122.0,2121.4,2.82363123]
[1772667163492,0.001,2121.8,2121.4,2.82363123]
[1772667164121,1.21919349,2121.5,2121.0,0.0011]
[1772667164609,1.22019349,2121.8,2121.0,0.0011]
[1772667166101,1.17830041,2121.7,2121.0,0.0011]
[1772667166303,1.21919349,2121.6,2121.0,0.0011]
[1772667168111,1.21919349,2121.4,2121.0,0.0011]
[1772667168615,1.1784115,2121.5,2121.0,0.0011]
[1772667168795,2.39753845,2121.7,2121.0,0.0011]
[1772667171287,2.78016111,2121.6,2121.0,0.0011]
[1772667171491,1.30387136,2121.5,2121.0,0.0011]
[1772667172408,1.1785226,2121.3,2121.0,0.0011]
[1772667172909,2.48239396,2121.3,2121.0,0.0011]
[1772667173109,1.30387136,2121.2,2121.0,0.0011]
[1772667173887,1.30387136,2121.2,2120.7,0.0011]
[1772667174306,2.48261623,2120.9,2120.7,0.0011]
[1772667174516,1.30387136,2120.7,2119.9,1.28520499]
[1772667174817,1.30387136,2120.5,2119.1,0.70932344]
[1772667175141,2.779208,2120.4,2119.1,0.70932344]
[1772667175288,1.30387136,2120.3,2119.1,0.70932344]
[1772667175901,1.30387136,2120.3,2119.2,1.502]
[1772667176116,1.30387136,2120.1,2119.1,2.21232344]
[1772667176288,2.48311664,2120.0,2119.1,0.70932344]
[1772667176490,1.30387136,2120.0,2119.2,0.78218505]
[1772667176690,1.17922918,2120.1,2119.2,0.78218505]
[1772667177189,1.30387136,2120.0,2119.2,0.78218505]
[1772667177420,1.30387136,2120.0,2118.9,2.60923895]
[1772667177718,1.30387136,2120.0,2119.1,0.77846215]
[1772667178219,1.30387136,2120.0,2118.9,1.4275491]
[1772667178421,1.30387136,2119.8,2119.0,1.506]
[1772667178714,1.30387136,2119.8,2119.0,1.507]
[1772667178885,1.30387136,2119.8,2118.9,2.15608695]
[1772667179082,1.30387136,2119.8,2118.9,0.64908695]
[1772667180321,1.30387136,2119.6,2118.9,0.64908695]
[1772667181111,1.30387136,2119.6,2118.9,1e-08]
[1772667181891,1.30387136,2119.4,2118.9,1e-08]
[1772667182387,1.17963478,2119.3,2118.9,1e-08]
[1772667182592,2.48345382,2119.4,2118.9,1e-08]
[1772667182908,2.4832279,2119.8,2118.9,1e-08]
[1772667183111,1.17929034,2120.0,2118.9,0.78794197]
[1772667183290,2.483088,2120.1,2118.9,0.78794197]
[1772667183622,2.48306273,2120.1,2118.9,0.78794197]
[1772667184120,1.30387136,2120.1,2118.9,0.78794197]
[1772667184421,2.48315274,2120.0,2119.0,1.96577523]
[1772667184820,1.17928138,2120.0,2119.1,0.78398707]
[1772667184998,1.1792126,2120.1,2119.1,0.78398707]
[1772667185499,2.48301432,2120.2,2119.1,0.78398707]
[1772667186207,1.30387136,2120.1,2119.1,0.78398707]
[1772667186527,1.30387136,2120.1,2118.9,1e-08]
[1772667186528,1.30387136,2119.7,2118.9,1e-08]
[1772667186712,4.16377452,2120.0,2118.9,1e-08]
[1772667186713,1.30387136,2119.4,2118.9,1e-08]
[1772667187523,1.30387136,2119.2,2118.0,2.20104329]
[1772667187832,1.30387136,2119.2,2117.8,1.18042978]
[1772667188219,1.30387136,2119.2,2118.6,0.0011]
[1772667188403,1.30387136,2119.0,2118.6,0.0011]
[1772667189331,1.30387136,2119.0,2117.7,1.99844301]
[1772667189633,1.30387136,2119.0,2117.4,5.53856664]
[1772667189815,1.30387136,2118.8,2117.6,0.815828]
[1772667190335,1.30387136,2118.8,2117.7,0.815828]
[1772667190634,1.30387136,2118.6,2117.8,1.18047029]
[1772667190930,1.30387136,2118.6,2117.7,1.18048963]
[1772667191817,1.30387136,2118.6,2117.6,1.18054829]
[1772667192925,1.30387136,2118.6,2117.4,1.1806933]
[1772667192926,1.30387136,2118.4,2117.4,1.1806933]
[1772667193634,1.30387136,2118.4,2117.4,0.80836503]
[1772667193838,4.72032098,2118.6,2117.4,0.80836503]
[1772667193839,1.18006738,2118.6,2117.4,0.80836503]
[1772667194146,6.02396953,2118.7,2117.4,0.80836503]
[1772667194147,2.4838818,2118.7,2117.4,0.80836503]
[1772667194527,1.30387136,2118.7,2117.4,0.80836503]
[1772667194740,1.17993279,2118.8,2117.4,0.80836503]
[1772667194936,4.71944926,2118.9,2117.4,0.80836503]
[1772667194937,6.02332062,2118.9,2117.5,1.18063754]
[1772667195234,6.02332062,2118.9,2117.6,0.80617468]
[1772667196124,1.30387136,2118.8,2117.7,2.30498953]
[1772667196441,1.30387136,2118.8,2117.7,2.30598953]
[1772667196614,1.30387136,2118.8,2117.7,1.502]
[1772667196816,1.30387136,2118.8,2117.8,0.80179945]
[1772667197132,1.17996884,2118.7,2117.9,1.18041456]
[1772667198246,1.30387136,2118.6,2117.8,1.18043327]
[1772667198623,1.30387136,2118.6,2117.5,5.52201125]
[1772667198941,1.30387136,2118.6,2117.5,1.18059341]
[1772667199148,1.30387136,2118.6,2117.4,6.22864576]
[1772667199149,1.36803328,2118.4,2117.4,4.72264576]
[1772667199344,1.36803328,2118.4,2117.3,1.30570771]
[1772667200014,1.36803328,2118.4,2117.3,2.10322655]
[1772667200309,1.36803328,2118.4,2117.6,0.0011]
[1772667201216,1.36803328,2118.2,2117.6,0.0011]
[1772667203255,2.54828358,2118.2,2117.6,0.0011]
[1772667203424,1.36803328,2118.2,2117.6,0.0011]
[1772667204317,1.36803328,2118.1,2117.6,0.0011]
[1772667204532,1.36803328,2117.9,2117.6,0.0011]
[1772667205247,2.54850357,2117.8,2117.4,0.0041]
[1772667205729,1.36803328,2117.7,2117.4,0.0041]
[1772667206130,1.36803328,2117.7,2117.3,1e-08]
[1772667206327,1.36803328,2117.7,2116.8,2.67382274]
[1772667206526,1.36803328,2117.7,2116.6,1.18109219]
[1772667206737,1.36803328,2117.7,2116.4,4.72485739]
[1772667207062,1.37586792,2117.5,2116.3,5.5107437]
[1772667207240,1.37586792,2117.3,2116.4,0.78573898]
[1772667208060,1.1806933,2117.4,2116.4,0.78573898]
[1772667208349,1.37586792,2117.6,2116.4,0.78573898]
[1772667208561,1.37586792,2117.5,2116.4,0.78573898]
[1772667209123,1.18061974,2117.6,2116.4,0.78573898]
[1772667209124,1.1806933,2117.4,2116.6,1.18113956]
[1772667209325,2.55656122,2117.4,2116.6,1.18113956]
[1772667209641,1.37586792,2117.3,2116.5,2.00363005]
[1772667209838,2.55649238,2117.6,2116.6,0.82247933]
[1772667210861,1.37586792,2117.5,2116.6,0.82247933]
[1772667211234,1.1806933,2117.4,2116.7,1.18108376]
[1772667211959,2.55656122,2117.4,2116.7,1.18108376]
[1772667212159,1.37586792,2117.3,2116.7,1.18108376]
[1772667212456,1.37586792,2117.3,2116.4,1.18125118]
[1772667212643,1.37586792,2117.3,2116.9,0.0011]
[1772667213240,1.37586792,2117.1,2116.4,1.16870418]
[1772667213557,1.37586792,2117.1,2116.4,0.0011]
[1772667214758,4.72295358,2117.4,2116.4,0.0011]
[1772667214759,2.55660269,2117.4,2116.4,0.81210415]
[1772667214959,1.37586792,2117.4,2116.4,0.81210415]
[1772667215135,2.5565768,2117.4,2116.4,0.81210415]
[1772667215658,2.5565768,2117.4,2116.5,1.18119536]
[1772667216430,1.37586792,2117.3,2116.5,1.18119536]
[1772667217953,1.37586792,2117.1,2116.4,1.18235118]
[1772667218831,1.37586792,2117.1,2116.4,1.9849448]
[1772667219171,8.88523283,2118.0,2116.5,0.80259362]
[1772667219172,1.18079479,2117.3,2116.5,0.80259362]
[1772667219338,1.37586792,2117.7,2116.5,0.80259362]
[1772667220079,2.55644971,2117.6,2116.6,1.27974729]
[1772667220437,1.37586792,2117.5,2116.6,1.27974729]
[1772667220637,1.37586792,2117.5,2116.4,2.46205204]
[1772667221156,1.37586792,2117.5,2116.4,1.18230475]
[1772667221352,1.37586792,2117.5,2116.5,1.27974729]
[1772667222586,2.08188726,2117.3,2116.6,1.18113956]
[1772667222766,1.1806933,2117.4,2116.7,1.27974729]
[1772667224531,6.81359798,2117.8,2116.8,1.18102796]
[1772667224734,6.81359798,2117.8,2116.9,1.27974729]
[1772667225266,4.6478594,2118.0,2117.1,1.27974729]
[1772667226755,1.37586792,2117.9,2117.2,1.18080483]
[1772667228152,1.37586792,2117.9,2117.0,1.18091639]
[1772667228878,1.31169584,2117.6,2116.9,2.724927]
[1772667229180,1.31169584,2117.6,2116.9,1.544]
[1772667229345,1.31169584,2117.6,2116.9,1.18096652]
[1772667229746,2.49216613,2117.8,2116.9,2.47826002]
[1772667229982,1.31169584,2117.7,2117.0,1.2972935]
[1772667230979,1.18058179,2117.6,2117.0,1.18087813]
[1772667231152,2.49227763,2117.6,2117.0,1.18087813]
[1772667232684,2.49227763,2117.6,2116.9,1.18092794]
[1772667232879,3.40329536,2117.5,2116.9,1.18092794]
[1772667233054,4.58397472,2117.5,2116.8,4.72510129]
[1772667233381,3.27223961,2117.5,2116.9,1.2972935]
[1772667234280,2.09159952,2117.5,2116.9,1.2972935]
[1772667234483,3.27223876,2117.5,2116.9,1.2972935]
[1772667234866,1.18060645,2117.6,2116.9,1.2972935]
[1772667235261,1.31169584,2117.5,2117.0,1.18091639]
[1772667236287,2.49230229,2117.6,2117.0,1.18091639]
[1772667236685,1.31169584,2117.4,2116.8,1.18211408]
[1772667236886,1.18060645,2117.6,2116.8,2.47940758]
[1772667236887,2.49230229,2117.6,2116.8,2.47940758]
[1772667237611,2.49230229,2117.6,2116.8,1.18211408]
[1772667237886,2.49230229,2117.6,2117.1,0.0011]
[1772667238085,1.31169584,2117.6,2117.1,0.0011]
[1772667238288,1.18055985,2117.7,2117.1,0.0011]
[1772667238487,2.77787947,2117.6,2117.1,0.0011]
[1772667238856,1.31169584,2117.5,2117.1,0.0011]
[1772667239058,1.31169584,2117.5,2116.9,0.0011]
[1772667239681,1.31169584,2117.3,2116.9,0.0011]
[1772667240895,1.18055209,2117.7,2116.9,1.2983935]
[1772667241096,2.49320599,2117.8,2116.9,1.2983935]
[1772667241302,2.7792273,2117.7,2117.1,1.2972935]
[1772667241506,0.001,2117.8,2117.1,1.2972935]
[1772667241682,0.001,2117.8,2117.2,2.47809833]
[1772667242078,0.001,2117.8,2117.3,1.2972935]
[1772667242273,2.49187448,2118.4,2117.3,1.2972935]
[1772667242474,2.77942704,2118.3,2117.3,1.2972935]
[1772667242787,0.001,2118.6,2117.3,1.2972935]
[1772667242996,3.96080375,2118.6,2117.3,1.2972935]
[1772667243172,1.18102942,2118.6,2117.3,1.2972935]
[1772667243501,0.001,2118.6,2117.3,1.2972935]
[1772667243794,0.001,2118.6,2117.5,1.2972935]
[1772667243985,0.001,2118.6,2117.7,1.2972935]
[1772667245897,0.001,2118.6,2117.9,1.2972935]
[1772667246084,0.001,2118.6,2118.3,1.2972935]
[1772667246277,0.001,2119.4,2118.5,1.2972935]
[1772667246278,1.18061678,2119.4,2118.5,1.2972935]
[1772667246485,0.001,2119.4,2118.5,1.2972935]
[1772667246700,1.18058583,2119.4,2118.5,1.2972935]
[1772667247897,0.001,2119.4,2118.7,1.2972935]
[1772667249073,1.31269584,2119.4,2118.4,2.47739201]
[1772667249597,1.31269584,2119.4,2118.4,1.18009851]
[1772667249981,1.31169584,2119.2,2118.3,6.2585438]
[1772667250482,0.001,2119.4,2118.4,1.2972935]
[1772667252199,0.001,2119.2,2118.6,1.2972935]
[1772667252368,0.001,2119.2,2118.4,2.71709162]
[1772667252568,0.001,2119.2,2118.2,2.68939384]
[1772667252569,1.31269584,2119.2,2118.2,1.18021346]
[1772667254404,1.31169584,2119.0,2118.1,1.1803031]
[1772667254972,1.31169584,2118.9,2117.8,1.18047029]
[1772667255177,1.31169584,2118.9,2117.5,1.18063754]
[1772667256205,1.31169584,2118.7,2117.5,1.18063754]
[1772667256805,1.31169584,2118.7,2117.3,0.0011]
[1772667256806,1.31169584,2118.3,2117.3,0.0011]
[1772667257010,1.31169584,2117.7,2117.0,0.0011]
[1772667257612,1.31169584,2117.7,2117.0,1.18200743]
[1772667257803,1.31169584,2117.7,2117.0,1.18201309]
[1772667258305,1.18041456,2117.9,2117.0,2.47930659]
[1772667260405,1.38170563,2117.9,2117.0,2.47930659]
[1772667261510,1.38170563,2117.9,2117.0,1.18201309]
[1772667261879,1.38170563,2117.8,2117.0,1.18201309]
[1772667262609,2.56223167,2117.7,2117.0,0.0011]
[1772667263602,1.18051458,2117.8,2117.0,1.29828201]
[1772667263800,2.56222021,2117.8,2117.0,1.29828201]
[1772667264009,1.18051458,2117.8,2117.0,0.0011]
[1772667264214,1.38170563,2117.7,2117.0,0.0011]
[1772667264524,2.56326653,2117.7,2117.2,0.0011]
[1772667264893,1.38270563,2117.7,2117.2,0.0011]
[1772667265093,2.56323588,2117.7,2117.2,0.0011]
[1772667265394,1.38170563,2117.6,2117.2,0.0011]
[1772667265806,0.001,2117.7,2117.2,0.0011]
[1772667267796,1.27454763,2117.7,2117.2,0.0011]
[1772667268001,1.27454763,2117.7,2117.0,0.0011]
[1772667268908,1.27354763,2117.5,2117.0,0.0011]
[1772667271000,1.27354763,2117.3,2117.0,0.0011]
[1772667273099,1.18080483,2117.2,2117.0,0.0011]
[1772667273728,2.45435246,2117.2,2117.0,0.0011]
[1772667274808,2.45412942,2117.6,2117.0,0.0011]
[1772667275207,1.27354763,2117.5,2117.0,0.0011]
[1772667275905,1.27354763,2117.5,2116.9,0.0011]
[1772667277330,1.27354763,2117.3,2116.9,0.0011]
[1772667277630,1.27354763,2117.3,2117.2,0.0011]
[1772667277828,1.27454763,2117.3,2117.2,0.0011]
[1772667279422,2.45529669,2117.3,2117.2,0.0011]
[1772667279626,1.27354763,2117.2,2117.0,0.0011]
[1772667280829,1.27354763,2117.2,2116.9,0.0011]
[1772667281509,1.18086061,2117.1,2116.9,0.0011]
[1772667282307,1.18179668,2117.3,2116.9,0.0011]
[1772667283010,1.27354763,2117.2,2116.8,0.0011]
[1772667283729,1.18086061,2117.1,2116.8,0.0011]
[1772667283928,1.27354763,2117.1,2116.8,0.0011]
[1772667284130,1.18179442,2117.3,2116.8,0.0011]
[1772667284639,2.45534205,2117.3,2116.8,0.0011]
[1772667285237,1.18179442,2117.3,2116.8,0.0011]
[1772667285438,1.27354763,2117.2,2116.8,0.0011]
[1772667286141,1.18086061,2117.1,2116.8,0.0011]
[1772667286646,2.45439732,2117.2,2116.8,0.0011]
[1772667286846,4.7241081,2117.3,2116.8,1.30396739]
[1772667286847,0.001,2117.3,2116.8,1.30396739]
[1772667287017,1.18175404,2117.3,2116.8,1.30396739]
[1772667287858,0.001,2117.3,2116.8,1.30396739]
[1772667288436,0.001,2117.3,2117.0,1.30286739]
[1772667289176,0.001,2117.7,2117.0,1.36671408]
[1772667289320,1.18033785,2118.1,2117.0,1.36671408]
[1772667289516,0.001,2118.1,2117.0,1.36781408]
[1772667289825,0.001,2117.1,2117.0,1.36781408]
[1772667290018,0.001,2118.1,2117.1,1.36671408]
[1772667290417,0.001,2118.1,2117.3,1.36671408]
[1772667292242,2.53686519,2118.5,2117.5,1.36671408]
[1772667292433,0.001,2118.3,2117.6,2.54729587]
[1772667292750,1.35774804,2118.3,2117.6,2.54729587]
[1772667293749,0.001,2118.2,2117.6,2.54729587]
[1772667294719,0.001,2118.1,2117.7,1.36671408]
[1772667295161,0.001,2118.1,2117.6,1.18058179]
[1772667295353,0.001,2118.1,2117.5,2.54730974]
[1772667296126,0.001,2118.1,2117.6,1.36671408]
[1772667296721,0.001,2118.1,2117.6,2.54724561]
[1772667298123,1.35774804,2118.1,2117.6,1.18053153]
[1772667298326,1.35774804,2118.1,2117.2,1.18080483]
[1772667298527,1.35774804,2118.1,2117.3,1.36671408]
[1772667300344,1.35774804,2118.1,2117.5,1.36671408]
[1772667301048,2.53805804,2118.1,2117.5,1.36671408]
[1772667301663,0.001,2117.9,2117.5,1.36671408]
[1772667302157,0.002,2117.9,2117.5,1.36671408]
[1772667302546,0.002,2117.9,2117.6,1.18058179]
[1772667304265,0.002,2117.9,2117.6,2.54729587]
[1772667304464,1.35674804,2118.6,2117.9,1.36671408]
[1772667304650,0.001,2118.5,2117.9,1.36671408]
[1772667304963,1.35774804,2118.8,2117.9,1.36671408]
[1772667305265,0.001,2118.7,2117.9,1.36671408]
[1772667305839,0.001,2118.6,2117.9,1.36671408]
[1772667306549,0.001,2118.6,2118.1,1.36671408]
[1772667307961,0.001,2118.6,2118.2,2.86671408]
[1772667308335,1.35674804,2118.9,2118.2,2.86671408]
[1772667308541,0.001,2118.8,2118.3,1.18019166]
[1772667308972,0.001,2118.7,2118.4,1.36671408]
[1772667309146,0.001,2119.0,2118.4,1.36671408]
[1772667309570,1.35674804,2119.0,2117.8,1.1804338]
[1772667309749,1.35674804,2118.7,2117.6,4.72222576]
[1772667310154,1.35674804,2118.5,2117.6,1.18058179]
[1772667310352,1.35674804,2118.5,2117.5,2.54733177]
[1772667310656,1.35674804,2118.3,2117.5,2.54733177]
[1772667310840,2.53699541,2118.2,2117.5,2.54733177]
[1772667311738,1.35774804,2118.1,2117.4,1.18067784]
[1772667312165,1.35774804,2118.1,2117.3,1.495]
[1772667312941,1.18035882,2118.0,2117.3,1.495]
[1772667313244,2.53710686,2118.0,2117.7,0.0011]
[1772667313449,0.001,2117.9,2117.7,0.0011]
[1772667316467,1.35674804,2117.9,2117.5,0.0011]
[1772667316666,1.35774804,2117.8,2117.5,0.0011]
[1772667317356,1.18152604,2117.7,2117.5,0.0011]
[1772667317559,2.53827408,2117.7,2117.5,0.0011]
[1772667318365,0.001,2117.6,2117.5,0.0011]
[1772667318570,2.53718876,2117.9,2117.5,0.0011]
[1772667318768,0.001,2117.8,2117.5,0.0011]
[1772667319651,1.32535081,2118.0,2117.5,0.0011]
[1772667319861,1.32635081,2118.0,2117.5,0.0011]
[1772667320937,0.001,2118.0,2117.5,0.0011]
[1772667321651,0.001,2118.0,2117.5,1.18173754]
[1772667322570,1.32535081,2118.2,2117.5,1.18173754]
[1772667323870,2.50565391,2118.1,2117.5,1.18173754]
[1772667325648,1.32535081,2118.0,2117.5,0.0011]
[1772667325848,2.50575172,2118.0,2117.5,0.0011]
[1772667326071,1.30582008,2117.9,2117.5,0.0011]
[1772667326444,1.30682008,2117.9,2117.5,0.0011]
[1772667326649,1.30582008,2117.7,2117.2,0.0011]
[1772667327475,1.30582008,2117.5,2117.2,0.0011]
[1772667328175,1.30582008,2117.3,2117.2,0.0011]
[1772667329175,1.1806933,2117.4,2117.2,0.0011]
[1772667329366,1.18056342,2117.7,2117.2,0.0011]
[1772667329567,2.48621805,2118.0,2117.2,1.27856006]
[1772667329766,3.85955505,2118.3,2117.2,1.27856006]
[1772667329967,1.18029969,2118.2,2117.2,1.27856006]
[1772667330178,1.18030432,2118.1,2117.2,1.27856006]
[1772667330482,1.18024737,2118.2,2117.3,2.45820912]
[1772667331085,1.18024737,2118.2,2117.4,1.27746006]
[1772667333074,1.30582008,2118.1,2117.5,1.18063754]
[1772667333260,1.18024737,2118.2,2117.3,1.18071608]
[1772667333261,1.30682008,2117.9,2117.3,1.18071608]
[1772667335386,1.18047029,2117.8,2117.3,1.18071608]
[1772667336680,2.48725797,2117.9,2117.3,1.18071608]
[1772667336876,1.18143789,2117.9,2117.3,1.18071608]
[1772667337282,2.48725797,2117.9,2117.3,1.18071608]
[1772667338555,2.48725797,2117.9,2117.5,0.0011]
[1772667338789,0.001,2117.7,2117.5,0.0011]
[1772667339210,1.30682008,2117.7,2117.5,0.0011]
[1772667339409,1.18058179,2117.6,2117.5,0.0011]
[1772667339814,2.48640187,2117.6,2117.5,0.0011]
[1772667340818,2.48640187,2117.6,2117.3,0.0011]
[1772667340986,1.18155723,2117.7,2117.3,0.0011]
[1772667341186,0.001,2117.7,2117.3,0.0011]
[1772667341807,1.18152792,2117.7,2117.3,0.0011]
[1772667342489,2.487348,2117.7,2117.3,0.0011]
[1772667343090,0.001,2117.7,2117.3,1.27856006]
[1772667343991,0.001,2117.9,2117.4,1.27746006]
[1772667345227,0.001,2117.9,2117.5,1.18063754]
[1772667345422,0.001,2117.9,2117.5,2.4580976]
[1772667345787,0.001,2117.9,2117.6,1.27746006]
[1772667347386,0.001,2117.9,2117.7,1.18052604]
[1772667349699,0.001,2117.9,2117.6,1.1805373]
[1772667351116,0.001,2117.9,2117.6,1.1816373]
[1772667351295,0.001,2117.9,2117.7,1.29460454]
[1772667351815,2.43365325,2118.3,2117.7,1.29460454]
[1772667351816,1.25345824,2118.2,2117.7,2.47507666]
[1772667353797,1.25345824,2118.4,2117.7,2.47507666]
[1772667353989,1.25345824,2118.4,2117.8,1.29460454]
[1772667354621,1.25345824,2118.4,2117.7,1.18047212]
[1772667355719,1.25345824,2118.4,2117.7,2.47507666]
[1772667356319,1.25345824,2118.2,2117.7,2.47507666]
[1772667357593,1.25345824,2118.2,2117.8,0.04721881]
[1772667358894,1.25345824,2118.2,2117.7,2.47509658]
[1772667359096,1.25345824,2118.2,2117.8,1.29460454]
[1772667359423,2.43363296,2118.4,2117.8,1.29460454]
[1772667360719,1.25345824,2118.4,2117.8,1.29460454]
[1772667360922,1.25345824,2118.4,2118.0,1.29460454]
[1772667362708,1.18009899,2118.5,2118.0,1.29460454]
[1772667363026,2.43352819,2118.6,2118.1,2.47490764]
[1772667363725,0.001,2118.2,2118.1,2.47490764]
[1772667364117,0.001,2118.9,2118.2,1.29460454]
[1772667364837,4.71943037,2119.4,2118.3,1.18019166]
[1772667364838,0.001,2119.4,2118.3,1.18019166]
[1772667365134,0.001,2119.4,2118.4,1.29460454]
[1772667365298,0.001,2119.4,2118.3,1.18019166]
[1772667365299,0.001,2119.4,2118.6,1.29460454]
[1772667367427,0.001,2119.4,2118.8,1.29460454]
[1772667369602,0.001,2119.4,2119.0,1.29460454]
[1772667369901,0.001,2119.4,2118.9,1.17985747]
[1772667369902,0.001,2119.4,2119.2,1.29460454]
[1772667370720,4.71632586,2120.3,2119.2,1.29460454]
[1772667370721,1.57385861,2120.4,2119.2,1.29460454]
[1772667370929,1.25345824,2120.3,2119.2,1.29460454]
[1772667372035,1.25345824,2120.3,2119.4,1.29460454]
[1772667372233,1.25345824,2120.2,2119.4,1.29460454]
[1772667372438,1.25345824,2120.2,2119.0,4.71911749]
[1772667372753,2.60195741,2119.9,2119.2,1.0]
[1772667372937,1.25345824,2119.8,2119.2,1.0]
[1772667374126,2.4328555,2119.8,2119.3,1.17963478]
[1772667374431,2.4328555,2119.8,2119.2,2.17964736]
[1772667375031,1.25345824,2120.1,2119.2,3.4742519]
[1772667376237,0.001,2119.6,2119.2,3.4742519]
[1772667376627,1.25345824,2120.1,2119.3,1.29460454]
[1772667376830,1.25345824,2120.1,2119.2,2.17964736]
[1772667376831,1.25345824,2120.3,2119.5,1.29460454]
[1772667377234,0.32040037,2120.4,2119.5,1.29460454]
[1772667377442,1.25345824,2120.6,2119.5,1.29460454]
[1772667378117,2.43228691,2120.8,2119.5,1.29460454]
[1772667378321,1.25345824,2120.8,2119.7,1.29460454]
[1772667378748,1.17873369,2121.0,2119.7,1.29460454]
[1772667379341,5.87252906,2121.1,2119.7,1.29460454]
[1772667379342,1.15789589,2121.1,2119.7,1.29460454]
[1772667379943,2.33653173,2121.1,2119.7,1.29460454]
[1772667380244,1.15789589,2121.0,2119.7,1.29460454]
[1772667380434,1.15789589,2121.0,2119.9,1.20808863]
[1772667380435,1.15789589,2120.8,2119.9,1.20808863]
[1772667380742,1.15789589,2120.8,2120.0,1.498]
[1772667380944,1.15789589,2120.8,2120.0,2.70608863]
[1772667383318,1.15789589,2121.1,2120.1,1.17918966]
[1772667383548,1.15789589,2121.1,2120.2,1.498]
[1772667383925,1.15789589,2121.1,2119.9,1.497]
[1772667384130,1.15789589,2121.0,2119.6,1.17943567]
[1772667384859,1.15789589,2121.0,2119.7,0.01757738]
[1772667385031,1.15789589,2121.0,2119.6,1.17943567]
[1772667386028,1.17874487,2120.9,2119.6,1.17943567]
[1772667386257,1.24201277,2120.8,2119.6,1.17943567]
[1772667387033,1.24201277,2120.8,2119.6,2.4290864]
[1772667388252,1.24201277,2120.6,2119.6,1.17943567]
[1772667390972,1.24201277,2120.4,2119.6,1.17943567]
[1772667392066,1.24201277,2120.4,2119.7,1.24965073]
[1772667393071,1.24201277,2120.6,2119.9,1.24965073]
[1772667394174,1.24201277,2120.6,2119.8,1.17935654]
[1772667396239,1.24201277,2120.4,2119.8,1.17935654]
[1772667396476,1.24201277,2120.4,2119.6,4.71776202]
[1772667398078,1.24201277,2120.4,2119.6,5.96741275]
[1772667400465,1.24201277,2120.4,2119.8,1.17935654]
[1772667400865,1.24201277,2120.6,2119.8,1.17935654]
[1772667401176,2.42181835,2120.8,2119.9,1.24965073]
[1772667401376,1.24201277,2120.7,2119.9,1.24965073]
[1772667401882,1.24201277,2120.7,2120.0,1.496]
[1772667402193,0.001,2120.2,2120.0,2.74565073]
[1772667402482,0.001,2120.2,2120.1,1.17918966]
[1772667402979,1.24201277,2120.6,2120.0,2.67523908]
[1772667403280,1.24201277,2120.6,2120.0,2.67524405]
[1772667405158,2.42093221,2120.6,2120.0,2.67524405]
[1772667405779,1.24201277,2120.6,2120.0,3.92489478]
[1772667405966,2.42185318,2120.8,2120.1,1.24965073]
[1772667406277,1.24201277,2120.7,2120.0,1.17924405]
[1772667408496,1.21873018,2120.6,2119.9,5.9270653]
[1772667408862,1.21873018,2120.6,2120.0,1.497]
[1772667409062,1.21873018,2120.6,2120.1,1.20987107]
[1772667409287,1.21973018,2120.8,2120.1,1.20987107]
[1772667409684,1.21873018,2120.7,2120.0,1.497]
[1772667409888,1.21873018,2120.7,2119.9,1.20987107]
[1772667410081,1.21873018,2120.7,2119.9,2.67630091]
[1772667410809,1.21873018,2120.6,2120.0,1.20987107]
[1772667411307,1.1789067,2120.7,2120.0,1.20987107]
[1772667411492,0.001,2121.4,2120.2,1.20987107]
[1772667411867,0.001,2121.4,2120.4,1.20987107]
[1772667412168,0.001,2121.4,2120.6,1.20987107]
[1772667412701,1.21873018,2121.3,2120.6,1.17887296]
[1772667412903,1.21873018,2121.3,2120.6,2.67587296]
[1772667413291,1.21873018,2121.3,2120.6,1.17887296]
[1772667413802,1.21873018,2121.3,2120.6,2.38874403]
[1772667414396,1.21873018,2121.3,2120.7,1.20987107]
[1772667414698,0.001,2121.4,2120.8,1.17880045]
[1772667414897,0.001,2121.4,2120.9,1.20987107]
[1772667415401,0.001,2121.1,2120.8,1.497]
[1772667415579,0.001,2121.1,2120.8,2.70687107]
[1772667415900,0.001,2121.4,2120.9,1.20987107]
[1772667416798,0.001,2121.8,2121.1,1.20987107]
[1772667418005,1.21873018,2121.7,2121.0,1.17868929]
[1772667418908,0.001,2122.0,2121.1,1.20987107]
[1772667419066,1.21873018,2123.0,2121.3,1.20987107]
[1772667419268,0.001,2123.2,2121.9,1.20987107]
[1772667419571,3.64237825,2123.7,2122.3,1.27540707]
[1772667419572,1.21873018,2123.6,2122.3,1.27540707]
[1772667419781,0.31747126,2123.7,2122.3,1.27540707]
[1772667419999,0.001,2123.8,2122.6,1.20987107]
[1772667420213,0.001,2123.8,2122.5,0.065536]
[1772667420214,0.001,2123.8,2122.8,1.20987107]
[1772667420773,0.001,2123.8,2123.2,1.20987107]
[1772667421320,0.001,2124.2,2123.4,1.20987107]
[1772667421599,0.001,2124.2,2123.5,1.491]
[1772667422398,1.21973018,2124.2,2123.5,1.491]
[1772667422811,0.001,2124.2,2123.6,1.17724618]
[1772667422986,1.21973018,2124.2,2123.6,1.17724618]
[1772667423579,1.21873018,2124.5,2123.6,2.38711725]
[1772667423911,1.21873018,2124.5,2123.6,1.17724618]
[1772667423912,2.39548345,2124.5,2123.6,1.17724618]
[1772667424791,1.21873018,2124.4,2123.6,1.17724618]
[1772667424991,1.21873018,2124.2,2123.5,1.491]
[1772667425191,1.21873018,2124.2,2123.4,1.17732217]
[1772667425712,4.70670995,2124.7,2123.5,1.20987107]
[1772667425713,1.21873018,2124.7,2123.5,1.20987107]
[1772667426816,3.75856716,2124.9,2123.5,1.20987107]
[1772667427015,1.21873018,2125.0,2123.7,1.20987107]
[1772667427201,1.21873018,2125.3,2123.9,1.20987107]
[1772667428110,1.21873018,2125.3,2123.8,1.496]
[1772667428312,0.001,2124.0,2123.9,1.20987107]
[1772667428512,1.21873018,2124.9,2123.9,1.20987107]